[Event "Titled Tuesday Blitz May 31 Early 2022"]
[White "Csonka, Balazs"]
[Black "Keymer, Vincent"]
[WhiteFideId "742910"]
[BlackFideId "12940690"]
[WhiteElo "2404"]
[BlackElo "2548"]
[Result "0-1"]
[Round "04"]
[TimeControl "180+1"]
[Date "2022.05.31"]
[WhiteClock "0:00:01"]
[BlackClock "0:00:53"]

1. d4 {[%clk 0:03:00]}  Nf6 {[%clk 0:02:59]} 2. c4 {[%clk 0:02:59]}  e6 {[%clk 0:03:00]} 3. Nc3 {[%clk 0:02:56]}  Bb4 {[%clk 0:03:00]} 4. Qc2 {[%clk 0:02:56]}  c5 {[%clk 0:02:59]} 5. dxc5 {[%clk 0:02:55]}  O-O {[%clk 0:02:59]} 6. Nf3 {[%clk 0:02:49]}  Na6 {[%clk 0:02:59]} 7. g3 {[%clk 0:02:48]}  Nxc5 {[%clk 0:02:59]} 8. Bg2 {[%clk 0:02:49]}  Nce4 {[%clk 0:02:59]} 9. O-O {[%clk 0:02:49]}  Bxc3 {[%clk 0:03:00]} 10. bxc3 {[%clk 0:02:50]}  d5 {[%clk 0:03:01]} 11. Ng5 {[%clk 0:02:23]}  Nd6 {[%clk 0:02:52]} 12. cxd5 {[%clk 0:01:48]}  exd5 {[%clk 0:02:41]} 13. Ba3 {[%clk 0:01:43]}  Bf5 {[%clk 0:02:34]} 14. Qb3 {[%clk 0:01:26]}  h6 {[%clk 0:02:27]} 15. Nh3 {[%clk 0:01:16]}  Bxh3 {[%clk 0:02:02]} 16. Bxh3 {[%clk 0:01:15]}  Re8 {[%clk 0:02:03]} 17. e3 {[%clk 0:01:00]}  Nc4 {[%clk 0:02:01]} 18. Rad1 {[%clk 0:00:55]}  Qc7 {[%clk 0:01:52]} 19. Rd4 {[%clk 0:00:41]}  Ne4 {[%clk 0:01:17]} 20. Bc1 {[%clk 0:00:28]}  Rad8 {[%clk 0:01:16]} 21. Rfd1 {[%clk 0:00:27]}  Na5 {[%clk 0:01:16]} 22. Qc2 {[%clk 0:00:12]}  Qxc3 {[%clk 0:01:07]} 23. Qxc3 {[%clk 0:00:08]}  Nxc3 {[%clk 0:01:08]} 24. R1d2 {[%clk 0:00:09]}  Nc4 {[%clk 0:01:04]} 25. Rc2 {[%clk 0:00:07]}  Ne4 {[%clk 0:00:59]} 26. Bg2 {[%clk 0:00:07]}  b5 {[%clk 0:00:58]} 27. a4 {[%clk 0:00:06]}  a6 {[%clk 0:00:57]} 28. axb5 {[%clk 0:00:06]}  axb5 {[%clk 0:00:58]} 29. f3 {[%clk 0:00:06]}  Nc5 {[%clk 0:00:56]} 30. e4 {[%clk 0:00:01]}  Nb3 {[%clk 0:00:53]} 31. Re2 {[%clk 0:00:01]}  Nxd4 {[%clk 0:00:53]} 0-1


[Site "https://www.chess.com"]

[Event "Titled Tuesday Blitz May 31 Early 2022"]
[White "Demchenko, Anton"]
[Black "Bekturov, Tamerlan"]
[WhiteFideId "4160258"]
[BlackFideId "13710184"]
[WhiteElo "2539"]
[BlackElo "2151"]
[Result "0-1"]
[Round "04"]
[TimeControl "180+1"]
[Date "2022.05.31"]
[WhiteClock "0:00:03"]
[BlackClock "0:00:17"]

1. e4 {[%clk 0:03:00]}  c5 {[%clk 0:02:56]} 2. Nf3 {[%clk 0:03:00]}  d6 {[%clk 0:02:57]} 3. d4 {[%clk 0:03:00]}  cxd4 {[%clk 0:02:57]} 4. Qxd4 {[%clk 0:03:01]}  a6 {[%clk 0:02:54]} 5. Be2 {[%clk 0:03:00]}  Nc6 {[%clk 0:02:54]} 6. Qe3 {[%clk 0:03:01]}  g6 {[%clk 0:02:51]} 7. O-O {[%clk 0:03:00]}  Bg7 {[%clk 0:02:52]} 8. h3 {[%clk 0:03:00]}  Nf6 {[%clk 0:02:52]} 9. Rd1 {[%clk 0:03:00]}  O-O {[%clk 0:02:53]} 10. c4 {[%clk 0:03:00]}  Bd7 {[%clk 0:02:45]} 11. Nc3 {[%clk 0:02:59]}  Qb8 {[%clk 0:02:35]} 12. Bd2 {[%clk 0:02:48]}  Rc8 {[%clk 0:02:28]} 13. Rac1 {[%clk 0:02:47]}  Nd8 {[%clk 0:02:01]} 14. b3 {[%clk 0:02:27]}  Ne6 {[%clk 0:01:54]} 15. Nd5 {[%clk 0:02:25]}  Nxd5 {[%clk 0:01:40]} 16. exd5 {[%clk 0:02:26]}  Nc5 {[%clk 0:01:38]} 17. Bc3 {[%clk 0:02:27]}  Bxc3 {[%clk 0:01:33]} 18. Rxc3 {[%clk 0:02:25]}  b5 {[%clk 0:01:33]} 19. Rd4 {[%clk 0:02:17]}  b4 {[%clk 0:01:20]} 20. Rc1 {[%clk 0:02:15]}  Kg7 {[%clk 0:00:42]} 21. Rh4 {[%clk 0:02:10]}  h5 {[%clk 0:00:42]} 22. Nd4 {[%clk 0:02:00]}  Rh8 {[%clk 0:00:39]} 23. Re1 {[%clk 0:01:40]}  Qd8 {[%clk 0:00:34]} 24. Rf4 {[%clk 0:01:36]}  a5 {[%clk 0:00:22]} 25. Bf3 {[%clk 0:01:24]}  a4 {[%clk 0:00:22]} 26. Qxe7 {[%clk 0:01:06]}  Qxe7 {[%clk 0:00:23]} 27. Rxe7 {[%clk 0:01:07]}  Rhf8 {[%clk 0:00:24]} 28. Ne6+ {[%clk 0:01:03]}  Bxe6 {[%clk 0:00:18]} 29. dxe6 {[%clk 0:01:02]}  Nxe6 {[%clk 0:00:18]} 30. Bxa8 {[%clk 0:00:19]}  Nxf4 {[%clk 0:00:18]} 31. Bf3 {[%clk 0:00:20]}  a3 {[%clk 0:00:16]} 32. Rb7 {[%clk 0:00:18]}  Nd3 {[%clk 0:00:16]} 33. Be4 {[%clk 0:00:13]}  Nc5 {[%clk 0:00:16]} 34. Rxb4 {[%clk 0:00:11]}  Nxe4 {[%clk 0:00:16]} 35. Ra4 {[%clk 0:00:12]}  Re8 {[%clk 0:00:13]} 36. Rxa3 {[%clk 0:00:12]}  Nc3 {[%clk 0:00:13]} 37. Ra6 {[%clk 0:00:10]}  Re1+ {[%clk 0:00:12]} 38. Kh2 {[%clk 0:00:10]}  Ra1 {[%clk 0:00:12]} 39. a4 {[%clk 0:00:06]}  Ra3 {[%clk 0:00:12]} 40. Rxd6 {[%clk 0:00:04]}  Rxb3 {[%clk 0:00:12]} 41. a5 {[%clk 0:00:05]}  Ne4 {[%clk 0:00:10]} 42. Rd1 {[%clk 0:00:04]}  Ra3 {[%clk 0:00:10]} 43. f3 {[%clk 0:00:04]}  Nc5 {[%clk 0:00:10]} 44. Rd5 {[%clk 0:00:04]}  Rxa5 {[%clk 0:00:10]} 45. h4 {[%clk 0:00:05]}  Nb3 {[%clk 0:00:11]} 46. Rd3 {[%clk 0:00:05]}  Nc5 {[%clk 0:00:10]} 47. Rd5 {[%clk 0:00:05]}  Kf6 {[%clk 0:00:11]} 48. Kg3 {[%clk 0:00:05]}  Ke6 {[%clk 0:00:11]} 49. Rd1 {[%clk 0:00:04]}  Ra4 {[%clk 0:00:11]} 50. Rf1 {[%clk 0:00:04]}  Rxc4 {[%clk 0:00:11]} 51. Re1+ {[%clk 0:00:05]}  Kf5 {[%clk 0:00:11]} 52. Ra1 {[%clk 0:00:06]}  Rc3 {[%clk 0:00:12]} 53. Ra5 {[%clk 0:00:06]}  Kf6 {[%clk 0:00:12]} 54. Rb5 {[%clk 0:00:06]}  Ne6 {[%clk 0:00:13]} 55. Rb6 {[%clk 0:00:07]}  Rc2 {[%clk 0:00:13]} 56. Ra6 {[%clk 0:00:06]}  Kf5 {[%clk 0:00:13]} 57. Ra5+ {[%clk 0:00:06]}  Rc5 {[%clk 0:00:14]} 58. Ra6 {[%clk 0:00:07]}  f6 {[%clk 0:00:15]} 59. Ra8 {[%clk 0:00:07]}  g5 {[%clk 0:00:15]} 60. hxg5 {[%clk 0:00:07]}  fxg5 {[%clk 0:00:15]} 61. Re8 {[%clk 0:00:07]}  h4+ {[%clk 0:00:15]} 62. Kh2 {[%clk 0:00:08]}  Rc2 {[%clk 0:00:15]} 63. Kg1 {[%clk 0:00:03]}  Nf4 {[%clk 0:00:16]} 64. Rf8+ {[%clk 0:00:03]}  Kg6 {[%clk 0:00:16]} 65. Rg8+ {[%clk 0:00:04]}  Kf6 {[%clk 0:00:16]} 66. Rf8+ {[%clk 0:00:03]}  Kg7 {[%clk 0:00:17]} 67. Kh1 {[%clk 0:00:03]}  Kxf8 {[%clk 0:00:17]} 0-1


[Site "https://www.chess.com"]

[Event "Titled Tuesday Blitz May 31 Early 2022"]
[White "Eljanov, Pavel"]
[Black "Sjoberg, Isak"]
[WhiteFideId "14102951"]
[BlackFideId "1521640"]
[WhiteElo "2601"]
[BlackElo "2037"]
[Result "1-0"]
[Round "04"]
[TimeControl "180+1"]
[Date "2022.06.01"]
[WhiteClock "0:00:17"]
[BlackClock "0:00:15"]

1. Nf3 {[%clk 0:03:00]}  g6 {[%clk 0:02:59]} 2. e4 {[%clk 0:03:00]}  Bg7 {[%clk 0:02:59]} 3. d4 {[%clk 0:03:00]}  d6 {[%clk 0:02:58]} 4. c4 {[%clk 0:03:00]}  b6 {[%clk 0:02:58]} 5. Nc3 {[%clk 0:02:59]}  Bb7 {[%clk 0:02:58]} 6. Be2 {[%clk 0:02:57]}  Nd7 {[%clk 0:02:59]} 7. O-O {[%clk 0:02:56]}  e6 {[%clk 0:02:59]} 8. Be3 {[%clk 0:02:47]}  Ne7 {[%clk 0:03:00]} 9. Qd2 {[%clk 0:02:46]}  h6 {[%clk 0:03:00]} 10. h3 {[%clk 0:02:44]}  g5 {[%clk 0:03:00]} 11. b4 {[%clk 0:02:38]}  a5 {[%clk 0:02:58]} 12. a3 {[%clk 0:02:33]}  O-O {[%clk 0:02:52]} 13. d5 {[%clk 0:02:09]}  e5 {[%clk 0:02:46]} 14. c5 {[%clk 0:01:59]}  bxc5 {[%clk 0:02:09]} 15. bxc5 {[%clk 0:01:59]}  Ba6 {[%clk 0:02:09]} 16. c6 {[%clk 0:01:56]}  Bxe2 {[%clk 0:02:01]} 17. Qxe2 {[%clk 0:01:55]}  Nf6 {[%clk 0:01:58]} 18. Nd2 {[%clk 0:01:48]}  Ng6 {[%clk 0:01:56]} 19. g3 {[%clk 0:01:47]}  Qc8 {[%clk 0:01:36]} 20. Kg2 {[%clk 0:01:46]}  Nf4+ {[%clk 0:01:35]} 21. gxf4 {[%clk 0:01:46]}  gxf4 {[%clk 0:01:36]} 22. Bb6 {[%clk 0:01:45]}  cxb6 {[%clk 0:01:22]} 23. Nc4 {[%clk 0:01:43]}  Qd8 {[%clk 0:01:14]} 24. Nb5 {[%clk 0:01:41]}  Ne8 {[%clk 0:01:15]} 25. Kh2 {[%clk 0:01:37]}  f5 {[%clk 0:01:15]} 26. Rg1 {[%clk 0:01:36]}  fxe4 {[%clk 0:01:12]} 27. Qxe4 {[%clk 0:01:33]}  f3 {[%clk 0:01:06]} 28. c7 {[%clk 0:01:07]}  Nxc7 {[%clk 0:00:58]} 29. Rxg7+ {[%clk 0:01:04]}  Kxg7 {[%clk 0:00:57]} 30. Rg1+ {[%clk 0:01:04]}  Kh8 {[%clk 0:00:57]} 31. Qg6 {[%clk 0:00:58]}  Qf6 {[%clk 0:00:47]} 32. Nxc7 {[%clk 0:00:36]}  Rac8 {[%clk 0:00:43]} 33. Ne6 {[%clk 0:00:37]}  Rxc4 {[%clk 0:00:36]} 34. Nxf8 {[%clk 0:00:25]}  Qxf8 {[%clk 0:00:37]} 35. Qe6 {[%clk 0:00:23]}  Rc2 {[%clk 0:00:33]} 36. h4 {[%clk 0:00:19]}  Rxf2+ {[%clk 0:00:32]} 37. Kh3 {[%clk 0:00:19]}  Rg2 {[%clk 0:00:28]} 38. Rc1 {[%clk 0:00:17]}  Qg7 {[%clk 0:00:17]} 39. Rc8+ {[%clk 0:00:16]}  Kh7 {[%clk 0:00:17]} 40. Qf5+ {[%clk 0:00:16]}  Qg6 {[%clk 0:00:15]} 41. Rc7+ {[%clk 0:00:16]}  Kh8 {[%clk 0:00:15]} 42. Qf8+ {[%clk 0:00:16]}  Qg8 {[%clk 0:00:15]} 43. Qxh6+ {[%clk 0:00:17]} 1-0


[Site "https://www.chess.com"]

[Event "Titled Tuesday Blitz May 31 Early 2022"]
[White "Fedoseev, Vladimir"]
[Black "Fantinel, Thibault"]
[WhiteFideId "24130737"]
[BlackFideId "663395"]
[WhiteElo "2726"]
[BlackElo "2349"]
[Result "1-0"]
[Round "04"]
[TimeControl "180+1"]
[Date "2022.05.31"]
[WhiteClock "0:00:02"]
[BlackClock "0:00:04"]

1. e4 {[%clk 0:01:13]}  c5 {[%clk 0:02:57]} 2. Nf3 {[%clk 0:01:11]}  e6 {[%clk 0:02:56]} 3. d4 {[%clk 0:01:10]}  cxd4 {[%clk 0:02:57]} 4. Nxd4 {[%clk 0:01:10]}  Nc6 {[%clk 0:02:58]} 5. Nc3 {[%clk 0:01:08]}  Qc7 {[%clk 0:02:58]} 6. g4 {[%clk 0:01:06]}  a6 {[%clk 0:02:56]} 7. Nxc6 {[%clk 0:00:56]}  bxc6 {[%clk 0:02:52]} 8. Qe2 {[%clk 0:00:56]}  Bb4 {[%clk 0:02:28]} 9. Qc4 {[%clk 0:00:52]}  a5 {[%clk 0:02:17]} 10. a3 {[%clk 0:00:50]}  Ba6 {[%clk 0:02:13]} 11. Qd4 {[%clk 0:00:47]}  e5 {[%clk 0:02:11]} 12. Qe3 {[%clk 0:00:44]}  Be7 {[%clk 0:01:52]} 13. Bxa6 {[%clk 0:00:40]}  Rxa6 {[%clk 0:01:52]} 14. Qd3 {[%clk 0:00:40]}  Ra8 {[%clk 0:01:49]} 15. Be3 {[%clk 0:00:35]}  Nf6 {[%clk 0:01:46]} 16. g5 {[%clk 0:00:33]}  Nh5 {[%clk 0:01:47]} 17. O-O-O {[%clk 0:00:30]}  d6 {[%clk 0:01:44]} 18. Qc4 {[%clk 0:00:28]}  Qb7 {[%clk 0:01:23]} 19. Rd3 {[%clk 0:00:24]}  O-O {[%clk 0:01:21]} 20. Rhd1 {[%clk 0:00:19]}  Rab8 {[%clk 0:01:18]} 21. Na4 {[%clk 0:00:17]}  Rfd8 {[%clk 0:01:10]} 22. h4 {[%clk 0:00:15]}  g6 {[%clk 0:01:06]} 23. Rb3 {[%clk 0:00:15]}  Qd7 {[%clk 0:01:01]} 24. Nb6 {[%clk 0:00:15]}  Qe8 {[%clk 0:00:41]} 25. Rdd3 {[%clk 0:00:14]}  Ng7 {[%clk 0:00:39]} 26. Rdc3 {[%clk 0:00:14]}  c5 {[%clk 0:00:29]} 27. Nd5 {[%clk 0:00:13]}  Ne6 {[%clk 0:00:30]} 28. Rxb8 {[%clk 0:00:09]}  Rxb8 {[%clk 0:00:29]} 29. Rb3 {[%clk 0:00:10]}  Rxb3 {[%clk 0:00:25]} 30. Qxb3 {[%clk 0:00:11]}  Kg7 {[%clk 0:00:23]} 31. Qb7 {[%clk 0:00:11]}  Bf8 {[%clk 0:00:22]} 32. Nf6 {[%clk 0:00:08]}  Qa4 {[%clk 0:00:19]} 33. h5 {[%clk 0:00:08]}  gxh5 {[%clk 0:00:16]} 34. Nxh5+ {[%clk 0:00:06]}  Kg6 {[%clk 0:00:16]} 35. Nf6 {[%clk 0:00:06]}  Qc4 {[%clk 0:00:13]} 36. Kd2 {[%clk 0:00:03]}  Nf4 {[%clk 0:00:06]} 37. Bxf4 {[%clk 0:00:02]}  Qd4+ {[%clk 0:00:06]} 38. Ke2 {[%clk 0:00:02]}  exf4 {[%clk 0:00:06]} 39. Qd7 {[%clk 0:00:02]}  Qxb2 {[%clk 0:00:04]} 40. Qf5+ {[%clk 0:00:02]} 1-0


[Site "https://www.chess.com"]

[Event "Titled Tuesday Blitz May 31 Early 2022"]
[White "Gaehwiler, Gabriel"]
[Black "Niemann, Hans Moke"]
[WhiteFideId "1314530"]
[BlackFideId "2093596"]
[WhiteElo "2383"]
[BlackElo "2632"]
[Result "0-1"]
[Round "04"]
[TimeControl "180+1"]
[Date "2022.05.31"]
[WhiteClock "0:00:34"]
[BlackClock "0:00:35"]

1. d4 {[%clk 0:02:59]}  Nf6 {[%clk 0:02:59]} 2. c4 {[%clk 0:02:56]}  g6 {[%clk 0:03:00]} 3. g3 {[%clk 0:02:56]}  c5 {[%clk 0:02:55]} 4. Bg2 {[%clk 0:02:57]}  cxd4 {[%clk 0:02:54]} 5. Nf3 {[%clk 0:02:54]}  e5 {[%clk 0:02:51]} 6. O-O {[%clk 0:02:53]}  Nc6 {[%clk 0:02:50]} 7. e3 {[%clk 0:02:54]}  dxe3 {[%clk 0:02:36]} 8. Bxe3 {[%clk 0:02:54]}  Bg7 {[%clk 0:02:17]} 9. Bc5 {[%clk 0:02:52]}  Bf8 {[%clk 0:02:15]} 10. Be3 {[%clk 0:02:51]}  Ng4 {[%clk 0:02:13]} 11. Nc3 {[%clk 0:02:40]}  Nxe3 {[%clk 0:02:12]} 12. fxe3 {[%clk 0:02:41]}  Bc5 {[%clk 0:02:07]} 13. Nd5 {[%clk 0:02:37]}  d6 {[%clk 0:02:06]} 14. Kh1 {[%clk 0:02:36]}  Be6 {[%clk 0:02:03]} 15. Nd2 {[%clk 0:02:36]}  f5 {[%clk 0:02:01]} 16. e4 {[%clk 0:02:34]}  O-O {[%clk 0:01:56]} 17. a3 {[%clk 0:02:29]}  a6 {[%clk 0:01:54]} 18. Qb3 {[%clk 0:02:25]}  Nd4 {[%clk 0:01:43]} 19. Qd3 {[%clk 0:02:23]}  Kh8 {[%clk 0:01:40]} 20. Rae1 {[%clk 0:02:22]}  Qd7 {[%clk 0:01:36]} 21. b4 {[%clk 0:02:22]}  Ba7 {[%clk 0:01:35]} 22. Nb3 {[%clk 0:02:22]}  Rac8 {[%clk 0:01:27]} 23. Nxd4 {[%clk 0:02:20]}  Bxd4 {[%clk 0:01:28]} 24. Qd2 {[%clk 0:02:17]}  Rxc4 {[%clk 0:01:26]} 25. Rc1 {[%clk 0:02:13]}  b5 {[%clk 0:01:24]} 26. Ne3 {[%clk 0:02:09]}  Rxc1 {[%clk 0:01:20]} 27. Rxc1 {[%clk 0:02:08]}  fxe4 {[%clk 0:01:18]} 28. Bxe4 {[%clk 0:02:07]}  Bh3 {[%clk 0:01:13]} 29. Nd5 {[%clk 0:02:01]}  Qf7 {[%clk 0:01:12]} 30. Qe2 {[%clk 0:01:56]}  Qf2 {[%clk 0:01:09]} 31. Qxf2 {[%clk 0:01:43]}  Rxf2 {[%clk 0:01:09]} 32. Nc7 {[%clk 0:01:40]}  Bb2 {[%clk 0:00:58]} 33. Rb1 {[%clk 0:01:32]}  Bxa3 {[%clk 0:00:54]} 34. Nxa6 {[%clk 0:01:32]}  Re2 {[%clk 0:00:49]} 35. Bd3 {[%clk 0:01:17]}  Rd2 {[%clk 0:00:43]} 36. Bxb5 {[%clk 0:01:16]}  Bf5 {[%clk 0:00:36]} 37. Re1 {[%clk 0:01:13]}  Rb2 {[%clk 0:00:35]} 38. Rd1 {[%clk 0:00:34]}  Bxb4 {[%clk 0:00:35]} 0-1


[Site "https://www.chess.com"]

[Event "Titled Tuesday Blitz May 31 Early 2022"]
[White "Gong, Patrick"]
[Black "Goldin, Roman"]
[WhiteFideId "3222500"]
[BlackFideId "2803860"]
[WhiteElo "2103"]
[BlackElo "2312"]
[Result "1-0"]
[Round "04"]
[TimeControl "180+1"]
[Date "2022.06.01"]
[WhiteClock "0:00:29"]
[BlackClock "0:00:01"]

1. d4 {[%clk 0:02:48]}  Nf6 {[%clk 0:02:55]} 2. c4 {[%clk 0:02:48]}  Nc6 {[%clk 0:02:53]} 3. Nf3 {[%clk 0:02:46]}  e6 {[%clk 0:02:53]} 4. Nc3 {[%clk 0:02:43]}  Bb4 {[%clk 0:02:53]} 5. Qc2 {[%clk 0:02:40]}  d6 {[%clk 0:02:49]} 6. Bd2 {[%clk 0:02:35]}  O-O {[%clk 0:02:48]} 7. a3 {[%clk 0:02:35]}  Bxc3 {[%clk 0:02:46]} 8. Bxc3 {[%clk 0:02:35]}  Qe7 {[%clk 0:02:46]} 9. e3 {[%clk 0:02:21]}  e5 {[%clk 0:02:44]} 10. Be2 {[%clk 0:02:16]}  Bg4 {[%clk 0:02:40]} 11. dxe5 {[%clk 0:02:05]}  dxe5 {[%clk 0:02:38]} 12. h3 {[%clk 0:02:03]}  Bh5 {[%clk 0:02:28]} 13. O-O {[%clk 0:01:58]}  a5 {[%clk 0:02:26]} 14. Rad1 {[%clk 0:01:49]}  Bg6 {[%clk 0:02:22]} 15. Qb3 {[%clk 0:01:44]}  Rfb8 {[%clk 0:02:04]} 16. Qb5 {[%clk 0:01:42]}  Nd7 {[%clk 0:02:00]} 17. Nh4 {[%clk 0:01:25]}  a4 {[%clk 0:01:41]} 18. Nxg6 {[%clk 0:01:24]}  hxg6 {[%clk 0:01:41]} 19. Bg4 {[%clk 0:01:23]}  Nc5 {[%clk 0:01:33]} 20. Rd5 {[%clk 0:01:18]}  Ne4 {[%clk 0:01:06]} 21. Rd7 {[%clk 0:01:07]}  Qf6 {[%clk 0:00:53]} 22. Be1 {[%clk 0:01:02]}  Nd6 {[%clk 0:00:44]} 23. Qd5 {[%clk 0:00:57]}  Ne8 {[%clk 0:00:44]} 24. Bc3 {[%clk 0:00:52]}  Rd8 {[%clk 0:00:43]} 25. Qb5 {[%clk 0:00:43]}  Nd6 {[%clk 0:00:37]} 26. Qd5 {[%clk 0:00:38]}  Ne8 {[%clk 0:00:36]} 27. Rxd8 {[%clk 0:00:35]}  Rxd8 {[%clk 0:00:35]} 28. Qb5 {[%clk 0:00:36]}  Nd6 {[%clk 0:00:33]} 29. Qxa4 {[%clk 0:00:37]}  Qe7 {[%clk 0:00:24]} 30. c5 {[%clk 0:00:36]}  Ne8 {[%clk 0:00:22]} 31. Qb5 {[%clk 0:00:35]}  f5 {[%clk 0:00:22]} 32. Be2 {[%clk 0:00:34]}  Rb8 {[%clk 0:00:19]} 33. Rd1 {[%clk 0:00:33]}  Nf6 {[%clk 0:00:17]} 34. Bc4+ {[%clk 0:00:33]}  Kf8 {[%clk 0:00:15]} 35. b4 {[%clk 0:00:34]}  Ne4 {[%clk 0:00:14]} 36. Be1 {[%clk 0:00:34]}  Nd8 {[%clk 0:00:09]} 37. Rd7 {[%clk 0:00:30]}  Qe8 {[%clk 0:00:08]} 38. Rxc7 {[%clk 0:00:30]}  Qxb5 {[%clk 0:00:01]} 39. Bxb5 {[%clk 0:00:31]}  Ne6 {[%clk 0:00:01]} 40. Rd7 {[%clk 0:00:29]}  Nf6 {[%clk 0:00:01]} 41. Rd6 {[%clk 0:00:29]} 1-0


[Site "https://www.chess.com"]

[Event "Titled Tuesday Blitz May 31 Early 2022"]
[White "Guseinov, Gadir"]
[Black "Nakamura, Hikaru"]
[WhiteFideId "13401378"]
[BlackFideId "2016192"]
[WhiteElo "2581"]
[BlackElo "2850"]
[Result "0-1"]
[Round "04"]
[TimeControl "180+1"]
[Date "2022.05.31"]
[WhiteClock "0:00:02"]
[BlackClock "0:00:21"]

1. e4 {[%clk 0:03:00]}  c5 {[%clk 0:02:57]} 2. Nc3 {[%clk 0:03:00]}  e6 {[%clk 0:02:56]} 3. Nf3 {[%clk 0:02:59]}  a6 {[%clk 0:02:56]} 4. d4 {[%clk 0:02:59]}  cxd4 {[%clk 0:02:55]} 5. Nxd4 {[%clk 0:03:00]}  Qc7 {[%clk 0:02:55]} 6. Bd3 {[%clk 0:02:59]}  Nf6 {[%clk 0:02:55]} 7. O-O {[%clk 0:02:58]}  Nc6 {[%clk 0:02:55]} 8. Nxc6 {[%clk 0:02:57]}  dxc6 {[%clk 0:02:56]} 9. f4 {[%clk 0:02:57]}  e5 {[%clk 0:02:56]} 10. Kh1 {[%clk 0:02:55]}  Bd6 {[%clk 0:02:53]} 11. f5 {[%clk 0:02:53]}  b5 {[%clk 0:02:50]} 12. a4 {[%clk 0:02:51]}  Rb8 {[%clk 0:02:46]} 13. axb5 {[%clk 0:02:47]}  axb5 {[%clk 0:02:46]} 14. Be3 {[%clk 0:02:47]}  Qe7 {[%clk 0:02:30]} 15. Qf3 {[%clk 0:02:39]}  Bc5 {[%clk 0:02:26]} 16. Nd1 {[%clk 0:02:34]}  O-O {[%clk 0:02:20]} 17. Bg5 {[%clk 0:02:21]}  Qc7 {[%clk 0:02:09]} 18. Ne3 {[%clk 0:01:56]}  Be7 {[%clk 0:01:55]} 19. Qh3 {[%clk 0:01:32]}  Ne8 {[%clk 0:01:50]} 20. Bxe7 {[%clk 0:01:25]}  Qxe7 {[%clk 0:01:51]} 21. Ng4 {[%clk 0:01:24]}  f6 {[%clk 0:01:36]} 22. Rf3 {[%clk 0:01:20]}  Nd6 {[%clk 0:01:35]} 23. Qh4 {[%clk 0:01:13]}  Nf7 {[%clk 0:01:34]} 24. Rg3 {[%clk 0:01:02]}  Kh8 {[%clk 0:01:30]} 25. Qh5 {[%clk 0:00:56]}  Bd7 {[%clk 0:01:25]} 26. Nf2 {[%clk 0:00:34]}  Ra8 {[%clk 0:01:20]} 27. Rf1 {[%clk 0:00:29]}  c5 {[%clk 0:01:19]} 28. b3 {[%clk 0:00:28]}  Bc6 {[%clk 0:01:14]} 29. Qg4 {[%clk 0:00:26]}  Nh6 {[%clk 0:01:08]} 30. Qe2 {[%clk 0:00:25]}  Ra5 {[%clk 0:01:00]} 31. Ng4 {[%clk 0:00:24]}  Nxg4 {[%clk 0:00:57]} 32. Rxg4 {[%clk 0:00:24]}  Rfa8 {[%clk 0:00:58]} 33. Rh4 {[%clk 0:00:23]}  Ra1 {[%clk 0:00:56]} 34. h3 {[%clk 0:00:18]}  Qb7 {[%clk 0:00:51]} 35. Kh2 {[%clk 0:00:14]}  Rxf1 {[%clk 0:00:49]} 36. Qxf1 {[%clk 0:00:14]}  Rd8 {[%clk 0:00:45]} 37. Qe2 {[%clk 0:00:12]}  Be8 {[%clk 0:00:45]} 38. Qe3 {[%clk 0:00:06]}  Qc7 {[%clk 0:00:41]} 39. Rg4 {[%clk 0:00:05]}  c4 {[%clk 0:00:39]} 40. bxc4 {[%clk 0:00:05]}  bxc4 {[%clk 0:00:40]} 41. Be2 {[%clk 0:00:06]}  Bf7 {[%clk 0:00:37]} 42. c3 {[%clk 0:00:05]}  Rd7 {[%clk 0:00:34]} 43. Rg3 {[%clk 0:00:06]}  Qa7 {[%clk 0:00:33]} 44. Qxa7 {[%clk 0:00:04]}  Rxa7 {[%clk 0:00:34]} 45. Re3 {[%clk 0:00:04]}  Ra2 {[%clk 0:00:34]} 46. Kg3 {[%clk 0:00:04]}  g6 {[%clk 0:00:32]} 47. fxg6 {[%clk 0:00:02]}  hxg6 {[%clk 0:00:33]} 48. Kf2 {[%clk 0:00:03]}  Kg7 {[%clk 0:00:32]} 49. g4 {[%clk 0:00:03]}  Be6 {[%clk 0:00:30]} 50. Rf3 {[%clk 0:00:03]}  Ra1 {[%clk 0:00:27]} 51. Rg3 {[%clk 0:00:03]}  Kh6 {[%clk 0:00:25]} 52. h4 {[%clk 0:00:01]}  Rh1 {[%clk 0:00:20]} 53. g5+ {[%clk 0:00:02]}  Kg7 {[%clk 0:00:20]} 54. gxf6+ {[%clk 0:00:02]}  Kxf6 {[%clk 0:00:21]} 55. Rf3+ {[%clk 0:00:02]}  Kg7 {[%clk 0:00:20]} 56. Kg3 {[%clk 0:00:02]}  Rh3+ {[%clk 0:00:20]} 57. Kf2 {[%clk 0:00:01]}  Rxh4 {[%clk 0:00:21]} 58. Rg3 {[%clk 0:00:02]}  Rxe4 {[%clk 0:00:21]} 0-1


[Site "https://www.chess.com"]